bitfinex/quotes_BTCUSD_20250204
["timestamp","ask_amount","ask_price","bid_price","bid_amount"]
[1738707267741,0.00155624,96389.0,96277.0,0.05178782]
[1738707267742,0.00036581,96393.0,96388.0,0.155621]
[1738707267904,0.00036581,96393.0,96392.0,0.155614]
[1738707269331,0.311051,96448.0,96369.0,0.01070762]
[1738707269538,0.10238506,96410.0,96377.0,0.155638]
[1738707269746,0.15714309,96409.0,96398.0,0.155604]
[1738707270003,0.10238506,96408.0,96370.0,0.207533]
[1738707270221,0.10238506,96408.0,96342.0,0.16073208]
[1738707270222,0.0485,96397.0,96355.0,0.08295184]
[1738707270386,0.155631,96382.0,96365.0,0.08295184]
[1738707270589,0.10394156,96381.0,96365.0,0.08295184]
[1738707270844,0.0829,96379.0,96348.0,0.155684]
[1738707271070,0.10142851,96379.0,96354.0,0.155674]
[1738707271277,0.10238506,96372.0,96343.0,0.08352986]
[1738707271493,0.207531,96371.0,96346.0,0.155687]
[1738707271701,0.207561,96357.0,96343.0,0.08352986]
[1738707271898,0.0829,96379.0,96343.0,0.08352986]
[1738707271899,0.15569,96346.0,96343.0,0.00057802]
[1738707272075,0.207516,96378.0,96344.0,0.01]
[1738707272210,0.10238506,96376.0,96344.0,0.01]
[1738707272412,0.0829,96379.0,96364.0,0.415092]
[1738707272621,0.0829,96379.0,96359.0,0.01]
[1738707272622,0.03013643,96386.0,96385.0,0.155625]
[1738707272853,0.03013643,96386.0,96385.0,0.175625]
[1738707273431,0.03013643,96418.0,96389.0,0.01]
[1738707273644,0.155597,96403.0,96389.0,0.01]
[1738707273795,0.10238506,96402.0,96389.0,0.01]
[1738707274198,0.155606,96397.0,96389.0,0.01]
[1738707274382,0.15561,96395.0,96386.0,0.155623]
[1738707274585,0.10238506,96394.0,96379.0,0.01]
[1738707274898,0.155578,96415.0,96405.0,0.155592]
[1738707275104,0.0817,96429.0,96409.0,0.02]
[1738707275307,0.0457,96453.0,96416.0,0.165575]
[1738707275308,0.0817,96446.0,96416.0,0.165575]
[1738707275510,0.0817,96446.0,96416.0,0.175575]
[1738707275681,0.01493233,96467.0,96416.0,0.17681951]
[1738707275682,0.0817,96465.0,96416.0,0.17681951]
[1738707275902,0.09330459,96464.0,96416.0,0.348575]
[1738707276110,0.207342,96459.0,96416.0,0.348575]
[1738707276310,0.08295184,96464.0,96416.0,0.45096006]
[1738707276531,0.08295184,96454.0,96416.0,0.47586224]
[1738707276903,0.08295184,96454.0,96416.0,0.325575]
[1738707277106,0.08295184,96454.0,96416.0,0.305575]
[1738707277349,0.15554,96438.0,96416.0,0.325575]
[1738707277536,0.207379,96442.0,96416.0,0.315575]
[1738707277684,0.155542,96437.0,96416.0,0.325575]
[1738707277883,0.08295184,96454.0,96416.0,0.155575]
[1738707278084,0.207414,96426.0,96404.0,0.01]
[1738707278284,0.207386,96439.0,96400.0,0.01]
[1738707278285,0.155583,96412.0,96402.0,0.155597]
[1738707278486,0.10238506,96412.0,96409.0,0.01]
[1738707278885,0.1700773,96417.0,96405.0,0.207456]
[1738707278886,0.0145023,96417.0,96405.0,0.01]
[1738707279087,0.11688736,96417.0,96414.0,0.155578]
[1738707279396,0.11688736,96417.0,96409.0,0.01]
[1738707279397,0.0145023,96417.0,96416.0,0.155575]
[1738707280114,0.0145023,96417.0,96401.0,0.01]
[1738707280115,0.155578,96415.0,96401.0,0.01]
[1738707280319,0.10238506,96414.0,96409.0,0.01]
[1738707280514,0.10238506,96414.0,96411.0,0.155582]
[1738707280710,0.10238506,96414.0,96409.0,0.01]
[1738707281361,0.0145023,96417.0,96409.0,0.01]
[1738707281596,0.0145023,96417.0,96412.0,0.207441]
[1738707281770,0.0145023,96417.0,96416.0,0.175575]
[1738707282037,0.0145023,96417.0,96416.0,0.49870443]
[1738707282180,3e-07,96417.0,96416.0,0.49746006]
[1738707282344,0.08295184,96454.0,96416.0,0.49746006]
[1738707282345,0.08295184,96454.0,96453.0,0.175516]
[1738707282558,0.0830932,96454.0,96453.0,0.175516]
[1738707282763,0.0830932,96454.0,96453.0,0.325516]
[1738707282764,0.00014136,96454.0,96453.0,0.325516]
[1738707286617,4.953e-05,96454.0,96453.0,0.325516]
[1738707286825,4.953e-05,96454.0,96453.0,0.315516]
[1738707287001,4.953e-05,96454.0,96453.0,0.325516]
[1738707288095,0.00027361,96454.0,96453.0,0.325516]
[1738707289360,0.08295184,96485.0,96458.0,0.01]
[1738707289361,0.06496811,96485.0,96458.0,0.01]
[1738707289519,0.06496811,96485.0,96462.0,0.01]
[1738707289520,0.11767923,96484.0,96462.0,0.01]
[1738707289762,0.10238506,96484.0,96462.0,0.01]
[1738707290105,0.155471,96482.0,96463.0,0.207333]
[1738707290358,0.10238506,96481.0,96462.0,0.01]
[1738707290536,0.10238506,96481.0,96469.0,0.01]
[1738707290737,0.1212046,96481.0,96469.0,0.155489]
[1738707290940,0.1212046,96481.0,96469.0,0.01]
[1738707291143,0.1212046,96481.0,96454.0,0.15]
[1738707291144,0.155485,96473.0,96459.0,0.20734]
[1738707291324,0.10238506,96472.0,96462.0,0.01]
[1738707291533,0.01881954,96481.0,96480.0,0.155472]
[1738707291735,0.1212046,96481.0,96480.0,0.155472]
[1738707292071,0.10238506,96481.0,96480.0,0.155472]
[1738707292634,0.10238506,96481.0,96475.0,0.15548]
[1738707292830,0.10238506,96481.0,96471.0,0.207316]
[1738707293039,0.00047085,96485.0,96484.0,0.175466]
[1738707293345,0.00047085,96485.0,96484.0,0.17670964]
[1738707293549,0.00047085,96485.0,96484.0,0.4290947]
[1738707293747,0.00022408,96487.0,96486.0,0.325462]
[1738707293748,9.3e-07,96487.0,96486.0,0.325462]
[1738707293945,0.004144,96550.0,96513.0,0.02]
[1738707293946,6.2e-07,96514.0,96513.0,0.02]
[1738707294191,6.2e-07,96514.0,96513.0,0.32834715]
[1738707294387,0.01115991,96522.0,96521.0,0.325406]
[1738707294589,0.0831,96568.0,96532.0,0.01]
[1738707294590,0.207128,96559.0,96532.0,0.01]
[1738707294746,0.0831,96568.0,96527.0,0.15]
[1738707294747,0.10238506,96550.0,96527.0,0.15]
[1738707294951,0.10238506,96550.0,96539.0,0.01]
[1738707295431,0.155366,96546.0,96539.0,0.01]
[1738707295645,0.1489115,96545.0,96517.0,0.01]
[1738707295847,0.207202,96524.0,96518.0,0.08295184]
[1738707296020,0.15,96537.0,96508.0,0.01]
[1738707296276,0.207172,96538.0,96502.0,0.01]
[1738707296480,0.155422,96512.0,96499.0,0.01]
[1738707296681,0.207178,96535.0,96500.0,0.155439]
[1738707296890,0.155432,96506.0,96500.0,0.01]
[1738707297040,0.10238506,96505.0,96496.0,0.165446]
[1738707297246,0.155442,96499.0,96488.0,0.155459]
[1738707297451,0.155442,96499.0,96479.0,0.207298]
[1738707297452,0.15541605,96485.0,96468.0,0.01]
[1738707297646,0.10238506,96484.0,96470.0,0.165487]
[1738707297811,0.10238506,96484.0,96475.0,0.01]
[1738707298370,0.155483,96474.0,96472.0,0.00047085]
[1738707298593,0.10238506,96473.0,96472.0,0.00047085]
[1738707299015,0.046,96512.0,96472.0,0.00047085]
[1738707299016,0.207248,96503.0,96475.0,0.207306]
[1738707299330,0.155447,96496.0,96487.0,0.15546]
[1738707299497,0.10238506,96495.0,96481.0,0.01]
[1738707299719,0.207197,96527.0,96484.0,0.01]
[1738707299949,0.155359,96550.0,96529.0,0.155392]
[1738707300097,0.155359,96550.0,96485.0,0.00124337]
[1738707300098,0.207134,96556.0,96528.0,0.01]
[1738707300302,0.01076341,96555.0,96550.0,0.155359]
[1738707300504,0.01076341,96555.0,96547.0,0.155364]
[1738707300684,0.207113,96566.0,96540.0,0.01]
[1738707300889,0.33526318,96560.0,96528.0,0.01]
[1738707301137,0.33526318,96560.0,96524.0,0.207202]
[1738707301304,0.155371,96543.0,96536.0,0.01]
[1738707301518,0.0003653,96551.0,96536.0,0.01]
[1738707301899,0.0003653,96551.0,96550.0,0.165359]
[1738707303062,0.10275036,96551.0,96535.0,0.56974]
[1738707303264,0.10238506,96550.0,96541.0,0.01]
[1738707303528,0.10238506,96550.0,96548.0,0.155362]
[1738707303720,0.10238506,96550.0,96544.0,0.01]
[1738707303917,0.10238506,96550.0,96545.0,0.155367]
[1738707304136,0.10238506,96550.0,96549.0,0.155361]
[1738707304336,0.0003653,96551.0,96550.0,0.01]
[1738707305164,0.00027352,96551.0,96550.0,0.01]
[1738707306068,0.00027352,96551.0,96550.0,0.03691508]
[1738707306192,0.00027352,96551.0,96550.0,0.01]
[1738707306808,0.00027352,96551.0,96550.0,0.03691508]
[1738707307025,0.00027352,96551.0,96549.0,0.155361]
[1738707307251,0.10238506,96550.0,96549.0,0.01]
[1738707307446,0.00027352,96551.0,96549.0,0.165361]
[1738707307662,0.00027352,96551.0,96550.0,0.01]
[1738707307822,0.10265858,96551.0,96550.0,0.01]
[1738707308029,0.00027352,96551.0,96550.0,0.01]
[1738707308472,0.3294,96586.0,96550.0,0.01]
[1738707308473,0.0798,96604.0,96594.0,0.155287]
[1738707308649,0.00047039,96597.0,96596.0,0.155285]
[1738707308869,0.00047039,96597.0,96596.0,0.165285]
[1738707309069,0.00047039,96597.0,96596.0,0.175285]
[1738707309282,0.00047039,96597.0,96596.0,0.18998468]
[1738707309507,0.00047039,96597.0,96596.0,0.32652714]
[1738707309714,0.00047039,96597.0,96596.0,0.42767006]
[1738707310029,0.00497269,96609.0,96608.0,0.325266]
[1738707310231,0.00511378,96609.0,96608.0,0.325266]
[1738707310436,0.00511378,96609.0,96608.0,0.41765106]
[1738707310640,0.00511378,96609.0,96608.0,0.42765106]
[1738707311201,0.0798,96659.0,96637.0,0.01]
[1738707311407,0.0798,96659.0,96628.0,0.206978]
[1738707311408,0.155217,96639.0,96625.0,0.206985]
[1738707311633,0.10238506,96627.0,96611.0,0.01]
[1738707311844,0.155206,96646.0,96634.0,0.155224]
[1738707312045,0.0798,96659.0,96631.0,0.01]
[1738707312237,0.2070438,96648.0,96636.0,0.01]
[1738707312401,0.206939,96647.0,96635.0,0.155221]
[1738707312753,0.0001068,96648.0,96643.0,0.155208]
[1738707312954,0.0001068,96648.0,96646.0,0.155205]
[1738707313155,0.00024783,96648.0,96647.0,0.02]
[1738707313403,0.01102672,96648.0,96647.0,0.17]
[1738707313610,0.00024783,96648.0,96647.0,0.16]
[1738707314040,0.10263289,96648.0,96637.0,0.01]
[1738707314257,0.30932406,96647.0,96641.0,0.01]
[1738707314466,0.155224,96635.0,96633.0,0.01]
[1738707314636,0.10238506,96647.0,96633.0,0.01]
[1738707314858,0.155216,96640.0,96629.0,0.01]
[1738707315049,0.155205,96646.0,96638.0,0.01]
[1738707315284,0.00024783,96648.0,96647.0,0.155203]
[1738707315486,0.00024783,96648.0,96646.0,0.155204]
[1738707315638,0.00024783,96648.0,96647.0,0.02]
[1738707315846,0.00024783,96648.0,96647.0,0.17124159]
[1738707316046,0.00024783,96648.0,96647.0,0.17]
[1738707316858,0.00024783,96648.0,96647.0,0.16]
[1738707317203,0.00024783,96648.0,96647.0,0.17]
[1738707318862,0.00024783,96648.0,96647.0,0.01]
[1738707319068,0.10263289,96648.0,96647.0,0.01]
[1738707319700,0.155213,96641.0,96640.0,1.5]
[1738707319907,0.43059806,96641.0,96640.0,1.5]
[1738707320264,0.155292,96592.0,96577.0,0.155315]
[1738707320402,0.15,96617.0,96568.0,0.01]
[1738707320599,0.230052,96594.0,96573.0,0.01]
[1738707320799,0.15,96619.0,96587.0,0.155298]
[1738707320800,0.10238506,96589.0,96587.0,0.155298]
[1738707321198,0.15,96619.0,96598.0,0.155281]
[1738707321409,0.08295184,96599.0,96588.0,0.155297]
[1738707321601,0.10238506,96598.0,96595.0,0.155287]
[1738707321818,0.206959,96638.0,96597.0,0.02]
[1738707322007,0.08295184,96620.0,96604.0,0.01]
[1738707322206,0.10238506,96619.0,96604.0,0.01]
[1738707322608,0.10238506,96619.0,96614.0,0.01]
[1738707323233,0.10238506,96619.0,96609.0,0.207018]
[1738707323443,0.10238506,96619.0,96615.0,0.155254]
[1738707323789,0.10238506,96619.0,96614.0,0.01]
[1738707324394,0.10238506,96619.0,96617.0,0.01]
[1738707325859,0.10238506,96619.0,96613.0,0.00022407]
[1738707326081,0.10238506,96619.0,96616.0,0.01]
[1738707326310,0.08295184,96646.0,96630.0,0.02]
[1738707326465,0.00014101,96640.0,96630.0,0.02]
[1738707326672,0.00014101,96640.0,96639.0,0.155215]
[1738707326870,0.00014101,96640.0,96639.0,0.165215]
[1738707327072,0.10252607,96640.0,96627.0,0.01]
[1738707327426,0.10238506,96639.0,96638.0,0.01]
[1738707327573,0.05238506,96639.0,96633.0,0.165225]
[1738707327782,0.05238506,96639.0,96638.0,0.01]
[1738707328010,0.05238506,96639.0,96628.0,0.15]
[1738707328226,0.05238506,96639.0,96638.0,0.01]
[1738707328366,0.00014101,96640.0,96638.0,0.165218]
[1738707329327,0.00014101,96640.0,96639.0,0.01]
[1738707329768,0.10252607,96640.0,96625.0,0.01]
[1738707329976,0.10238506,96639.0,96619.0,0.01]
[1738707330214,0.155223,96635.0,96624.0,0.01]
[1738707330417,0.20709501,96640.0,96613.0,0.00022407]
[1738707330418,0.10238506,96625.0,96613.0,0.00022407]
[1738707330617,0.28064206,96614.0,96613.0,0.00022407]
[1738707330757,0.35010677,96614.0,96613.0,0.00022407]
[1738707330937,0.50010677,96614.0,96613.0,0.00022407]
[1738707331145,0.50010677,96614.0,96558.0,0.01]
[1738707331146,0.155317,96577.0,96558.0,0.01]
[1738707331371,0.10238506,96576.0,96561.0,0.01]
[1738707331573,0.10238506,96576.0,96549.0,0.0474]
[1738707331794,0.10238506,96572.0,96549.0,0.0474]
[1738707331991,0.10238506,96572.0,96539.0,0.207169]
[1738707331992,0.15536,96550.0,96529.0,0.01]
[1738707332141,0.023,96565.0,96535.0,0.01022407]
[1738707332347,0.155381,96537.0,96535.0,0.00022407]
[1738707332595,0.10238506,96536.0,96535.0,0.00022407]
[1738707332762,0.10238506,96536.0,96535.0,0.00069446]
[1738707333165,0.12538506,96536.0,96535.0,0.00069446]
[1738707333356,0.17417847,96536.0,96535.0,0.00069446]
[1738707333616,0.32417847,96536.0,96535.0,0.00069446]
[1738707333787,0.27538506,96536.0,96535.0,0.00069446]
[1738707334018,0.15,96535.0,96520.0,0.00022428]
[1738707334215,0.28079106,96521.0,96520.0,0.00036537]
[1738707335228,0.43079106,96521.0,96520.0,0.00036537]
[1738707335551,0.155413,96517.0,96490.0,0.01]
[1738707335756,0.10238506,96517.0,96516.0,0.00036529]
[1738707336349,0.12538506,96517.0,96516.0,0.00036529]
[1738707336564,0.32680143,96517.0,96516.0,0.00036529]
[1738707337516,0.155479,96476.0,96458.0,0.207343]
[1738707337692,0.10238506,96475.0,96468.0,0.01]
[1738707338052,0.155491,96469.0,96453.0,0.20757749]
[1738707338253,0.10238506,96468.0,96459.0,0.155506]
[1738707338462,0.10238506,96468.0,96453.0,0.20757749]
[1738707338665,0.25787806,96468.0,96456.0,0.01]
[1738707338963,0.10238506,96468.0,96457.0,0.01]
[1738707339171,0.10238506,96468.0,96456.0,0.00047085]
[1738707339544,0.10238506,96468.0,96459.0,0.155506]
[1738707339710,0.10238506,96468.0,96456.0,0.20781785]
[1738707339711,0.10238506,96468.0,96456.0,0.00047085]
[1738707339917,0.09738506,96468.0,96458.0,0.155506]
[1738707340329,0.09738506,96468.0,96456.0,0.00047085]
[1738707340574,0.09738506,96468.0,96457.0,0.155509]
[1738707341188,0.09738506,96468.0,96461.0,0.155501]
[1738707341341,1.01759004,96605.0,96456.0,0.00047085]
[1738707341342,0.33526318,96510.0,96480.0,0.01]
[1738707341522,0.08295184,96489.0,96478.0,0.01]
[1738707341732,0.10238506,96488.0,96483.0,0.01]
[1738707341938,0.10238506,96488.0,96487.0,0.155461]
[1738707342107,0.10238506,96488.0,96484.0,0.207288]
[1738707342308,0.207224,96514.0,96465.0,0.15]
[1738707342309,0.155417,96515.0,96504.0,0.155432]
[1738707342567,0.10238506,96511.0,96493.0,0.01]
[1738707342765,0.10238506,96508.0,96493.0,0.01]
[1738707342968,0.10238506,96508.0,96492.0,0.01]
[1738707343118,0.10238506,96508.0,96494.0,0.207266]
[1738707343327,0.10238506,96508.0,96499.0,0.01]
[1738707343522,0.10238506,96506.0,96485.0,0.01]
[1738707343784,0.155459,96489.0,96478.0,0.165474]
[1738707343930,0.10238506,96488.0,96478.0,0.01]
[1738707344133,0.10238506,96488.0,96482.0,0.155468]
[1738707344639,0.10238506,96488.0,96478.0,0.01]
[1738707344830,0.155469,96483.0,96472.0,0.01]
[1738707345038,0.10238506,96482.0,96472.0,0.01047085]
[1738707345285,0.10238506,96482.0,96472.0,0.00047085]
[1738707345492,0.25785506,96482.0,96472.0,0.01047085]
[1738707345700,0.155473,96480.0,96472.0,0.01047085]
[1738707345896,0.08295184,96498.0,96477.0,0.155475]
[1738707345897,0.10238506,96479.0,96477.0,0.155475]
[1738707346104,0.08295184,96498.0,96478.0,0.01]
[1738707346308,0.13140594,96497.0,96488.0,0.01]
[1738707346886,0.13140594,96497.0,96480.0,0.01]
[1738707347089,0.13140594,96497.0,96472.0,0.00047085]
[1738707347090,0.10238506,96494.0,96472.0,0.00047085]
[1738707347304,0.207268,96493.0,96472.0,0.00047085]
[1738707347510,0.10238506,96492.0,96472.0,0.00047085]
[1738707347680,0.01072586,96504.0,96472.0,0.00047085]
[1738707347681,0.155462,96486.0,96472.0,0.00047085]
[1738707347821,0.01072586,96504.0,96472.0,0.00047085]
[1738707347822,0.155483,96474.0,96472.0,0.00047085]
[1738707348022,0.10238506,96473.0,96472.0,0.00047085]
[1738707348793,0.16572213,96473.0,96472.0,0.00047085]
[1738707350552,0.207287,96485.0,96472.0,0.00047085]
[1738707350553,0.15975184,96509.0,96472.0,0.00047085]
[1738707350747,0.15975184,96509.0,96475.0,0.01]
[1738707350748,0.10238506,96484.0,96475.0,0.01]
[1738707350994,0.10238506,96484.0,96483.0,0.15]
[1738707352032,0.207294,96482.0,96470.0,0.15]
[1738707352242,0.06238,96549.0,96483.0,0.01]
[1738707352525,0.10238506,96507.0,96496.0,0.01]
[1738707352732,0.10238506,96507.0,96474.0,0.0469]
[1738707352733,0.10238506,96507.0,96505.0,0.155431]
[1738707352947,0.01073746,96528.0,96506.0,0.15]
[1738707353143,0.01054026,96546.0,96526.0,0.01]
[1738707353344,0.10238506,96545.0,96539.0,0.01]
[1738707353545,0.0786,96582.0,96549.0,0.01]
[1738707353838,0.08888711,96601.0,96576.0,0.155317]
[1738707353839,0.155302,96586.0,96576.0,0.155317]
[1738707354057,0.01028611,96591.0,96577.0,0.16]
[1738707354342,0.01028611,96591.0,96576.0,0.155317]
[1738707354343,0.04143,96588.0,96578.0,0.33819159]
[1738707354477,0.08888711,96601.0,96578.0,0.3485842]
[1738707354709,0.08888711,96601.0,96600.0,0.325279]
[1738707354921,0.0893575,96601.0,96600.0,0.52567614]
[1738707355129,0.0893575,96601.0,96600.0,0.608781]
[1738707355130,0.00289673,96601.0,96600.0,0.608781]
[1738707355327,5e-07,96604.0,96603.0,0.325274]
[1738707355545,5e-07,96604.0,96603.0,0.35587655]
[1738707355747,5e-07,96604.0,96603.0,0.45826161]
[1738707355949,5e-07,96604.0,96603.0,0.46453513]
[1738707356148,0.15518,96662.0,96634.0,0.315224]
[1738707356350,0.00024779,96635.0,96634.0,0.37505301]
[1738707356643,0.00024779,96635.0,96634.0,0.36877949]
[1738707356977,0.00024779,96635.0,96634.0,0.32149752]
[1738707357176,0.00024779,96635.0,96634.0,0.325224]
[1738707357777,0.00024779,96635.0,96634.0,0.165224]
[1738707357977,0.00024779,96635.0,96634.0,0.01]
[1738707357978,0.10263285,96635.0,96634.0,0.01]
[1738707358941,0.00024779,96635.0,96634.0,0.47570906]
[1738707359159,0.08295184,96673.0,96647.0,0.325203]
[1738707359375,0.06416534,96673.0,96672.0,0.165163]
[1738707359577,0.16669141,96673.0,96672.0,0.01]
[1738707359781,0.00014101,96673.0,96672.0,0.175163]
[1738707360751,0.00014101,96673.0,96672.0,0.325163]
[1738707361156,0.00014101,96673.0,96672.0,0.3322168]
[1738707361381,0.00014101,96673.0,96672.0,0.325163]
[1738707361577,0.00014101,96673.0,96672.0,0.354672]
[1738707361777,0.00014101,96673.0,96672.0,0.394372]
[1738707362108,0.00014101,96673.0,96672.0,0.374863]
[1738707362508,0.10252607,96673.0,96672.0,0.155163]
[1738707362826,0.10263297,96673.0,96672.0,0.165163]
[1738707362958,0.00024791,96673.0,96672.0,0.175163]
[1738707363556,0.00024791,96673.0,96672.0,0.17640412]
[1738707363768,0.00024791,96673.0,96672.0,0.175163]
[1738707364193,0.00024791,96673.0,96672.0,0.18543856]
[1738707364407,0.01160951,96692.0,96691.0,0.155133]
[1738707364612,0.01160951,96692.0,96691.0,0.325133]
[1738707365464,0.01160951,96692.0,96691.0,0.315133]
[1738707365673,0.01160951,96692.0,96691.0,0.325133]
[1738707366050,0.11399457,96692.0,96686.0,0.165141]
[1738707366312,0.10238506,96687.0,96661.0,0.01]
[1738707366524,0.02427239,96692.0,96662.0,0.01]
[1738707366525,0.10238506,96676.0,96662.0,0.01]
[1738707366746,0.155168,96670.0,96655.0,0.206921]
[1738707366950,0.023,96689.0,96651.0,0.00014101]
[1738707366951,0.10238506,96669.0,96651.0,0.00014101]
[1738707367193,0.10238506,96669.0,96655.0,0.15519]
[1738707367194,0.155174,96666.0,96655.0,0.15519]
[1738707367392,0.10238506,96669.0,96651.0,0.00014101]
[1738707367595,0.155181,96661.0,96651.0,0.15533801]
[1738707367793,0.10238506,96660.0,96651.0,0.00014101]
[1738707368000,0.10238506,96660.0,96652.0,0.155195]
[1738707368405,0.10238506,96660.0,96651.0,0.00014101]
[1738707368608,0.10238506,96660.0,96655.0,0.16519]
[1738707368812,0.10238506,96660.0,96651.0,0.20706901]
[1738707368813,0.10238506,96660.0,96652.0,0.155195]
[1738707369009,0.10238506,96660.0,96657.0,0.01]
[1738707369267,0.023,96657.0,96651.0,0.00014101]
[1738707369517,0.12538506,96652.0,96651.0,0.00014101]
[1738707371061,0.35388506,96652.0,96651.0,0.00014101]
[1738707371205,0.12538506,96652.0,96651.0,0.00014101]
[1738707371401,0.28058006,96652.0,96651.0,0.00014101]
[1738707371601,0.12538506,96652.0,96651.0,0.00014101]
[1738707371815,0.10238506,96652.0,96651.0,0.00014101]
[1738707372010,0.0126342,96697.0,96665.0,0.01]
[1738707372213,0.10238506,96681.0,96679.0,0.155151]
[1738707372623,0.10238506,96681.0,96680.0,0.02]
[1738707372906,0.0126342,96697.0,96691.0,0.165133]
[1738707373111,0.11399457,96692.0,96691.0,0.165133]
[1738707373312,0.01160951,96692.0,96691.0,0.175133]
[1738707373516,0.01160951,96692.0,96691.0,0.02]
[1738707373716,0.01160951,96692.0,96676.0,0.15]
[1738707373717,0.11399457,96692.0,96676.0,0.15]
[1738707373922,0.10238506,96691.0,96687.0,0.01]
[1738707374129,0.10238506,96691.0,96688.0,0.01]
[1738707374330,0.10238506,96691.0,96686.0,0.01]
[1738707374480,0.01160951,96692.0,96660.0,0.33540419]
[1738707374481,0.10238506,96687.0,96672.0,0.165162]
[1738707374681,0.10238506,96687.0,96664.0,0.01]
[1738707374682,0.10238506,96687.0,96683.0,0.01]
[1738707374891,0.0001066,96673.0,96672.0,0.01]
[1738707375066,0.0001066,96673.0,96672.0,0.325163]
[1738707376105,0.01160951,96692.0,96691.0,0.325133]
[1738707376308,0.01160951,96692.0,96691.0,0.374133]
[1738707377102,0.0031503,96735.0,96705.0,0.32511]
[1738707377386,0.01497222,96706.0,96705.0,0.33835498]
[1738707377584,0.01497222,96706.0,96705.0,0.33538556]
[1738707377960,0.01497222,96706.0,96705.0,0.33835498]
[1738707378163,0.01497222,96706.0,96705.0,0.34585888]
[1738707378528,0.01497222,96706.0,96705.0,0.3413244]
[1738707378734,2.2e-07,96706.0,96705.0,0.4889827]
[1738707378937,2.2e-07,96706.0,96705.0,0.49492154]
[1738707379148,6.2e-07,96712.0,96711.0,0.02]
[1738707379346,0.07762684,96765.0,96757.0,0.01]
[1738707379563,0.07762684,96765.0,96764.0,0.155016]
[1738707379710,0.07776786,96765.0,96764.0,0.155016]
[1738707379919,0.10252608,96765.0,96764.0,0.155016]
[1738707380131,0.10243439,96765.0,96764.0,0.155016]
[1738707380277,0.10243439,96765.0,96762.0,0.01]
[1738707380485,0.10238506,96764.0,96762.0,0.155019]
[1738707380690,0.10238506,96764.0,96763.0,0.155017]
[1738707380896,0.10238506,96764.0,96763.0,0.165017]
[1738707381175,0.10238506,96764.0,96759.0,0.01]
[1738707381763,0.10238506,96764.0,96755.0,0.206707]
[1738707381764,0.10238506,96764.0,96757.0,0.01]
[1738707381964,0.023,96763.0,96757.0,0.01]
[1738707382166,0.023,96761.0,96754.0,0.01]
[1738707382418,0.10238506,96760.0,96754.0,0.01]
[1738707382854,0.10238506,96760.0,96755.0,0.15503]
[1738707383002,0.10238506,96760.0,96759.0,0.165024]
[1738707383204,0.10238506,96760.0,96759.0,0.175024]
[1738707383610,0.10238506,96760.0,96756.0,0.01]
[1738707383956,0.10238506,96760.0,96759.0,0.02]
[1738707384490,4.933e-05,96765.0,96764.0,0.175016]
[1738707384692,0.10243439,96765.0,96764.0,0.175016]
[1738707385008,4.933e-05,96765.0,96764.0,0.175016]
[1738707385211,4.933e-05,96765.0,96764.0,0.325016]
[1738707385645,0.10243439,96765.0,96764.0,0.175016]
[1738707385792,0.10243439,96765.0,96760.0,0.01]
[1738707385994,0.10238506,96764.0,96762.0,0.01]
[1738707386198,0.10238506,96763.0,96758.0,0.01]
[1738707386512,0.10238506,96763.0,96744.0,0.01027556]
[1738707386513,0.023,96762.0,96751.0,0.01]
[1738707386730,0.155039,96750.0,96741.0,0.01]
[1738707386910,0.10238506,96749.0,96735.0,0.01]
[1738707387103,0.0001066,96760.0,96737.0,0.01]
[1738707387104,0.10238506,96738.0,96737.0,0.01]
[1738707387462,0.10238506,96738.0,96723.0,0.01]
[1738707387664,0.023,96737.0,96720.0,0.03027556]
[1738707387868,0.023,96728.0,96714.0,0.01]
[1738707388070,0.023,96728.0,96680.0,0.33526318]
[1738707388071,0.15,96747.0,96697.0,0.01]
[1738707388185,0.2315,96748.0,96682.0,0.0486]
[1738707388186,0.10238506,96698.0,96682.0,0.01]
[1738707388389,0.20684,96693.0,96678.0,0.01]
[1738707388642,0.155126,96696.0,96683.0,0.206861]
[1738707388847,0.10238506,96689.0,96681.0,0.01]
[1738707389005,0.023,96688.0,96681.0,0.01]
[1738707389206,0.206857,96685.0,96682.0,0.01]
[1738707389410,0.023,96679.0,96678.0,0.00046992]
[1738707389615,0.12538506,96679.0,96678.0,0.00046992]
[1738707390279,0.19481117,96679.0,96678.0,0.00046992]
[1738707390790,0.10238506,96679.0,96678.0,0.02046992]
[1738707390797,0.0821,96733.0,96700.0,0.01]
[1738707391025,0.08295184,96708.0,96707.0,0.165106]
[1738707391233,0.10238506,96721.0,96720.0,0.155086]
[1738707391435,0.155058,96738.0,96726.0,0.01]
[1738707391662,0.10238506,96730.0,96726.0,0.01]
[1738707391904,0.10238506,96730.0,96729.0,0.155072]
[1738707392367,0.05238506,96730.0,96729.0,0.175072]
[1738707392594,0.01894981,96748.0,96725.0,0.206771]
[1738707392595,0.01894981,96748.0,96740.0,0.01]
[1738707392799,0.01894981,96748.0,96747.0,0.315043]
[1738707392971,0.01894981,96748.0,96747.0,0.325043]
[1738707393178,0.08295184,96766.0,96759.0,0.01]
[1738707393376,0.08295184,96766.0,96758.0,0.165025]
[1738707393377,0.10249166,96760.0,96758.0,0.165025]
[1738707393579,0.0001066,96760.0,96759.0,0.02]
[1738707393779,0.0001066,96760.0,96759.0,0.1712402]
[1738707394193,0.0001066,96760.0,96759.0,0.35572526]
[1738707394393,0.0001069,96770.0,96769.0,0.315008]
[1738707394592,0.0001069,96770.0,96769.0,0.325008]
[1738707394793,0.0001069,96770.0,96769.0,0.42739306]
[1738707395379,0.0001069,96770.0,96769.0,0.34761758]
[1738707395575,0.0001069,96770.0,96769.0,0.325008]
[1738707395819,0.0001069,96770.0,96769.0,0.34131804]
[1738707396638,0.0001069,96770.0,96769.0,0.4437031]
[1738707397209,0.0001069,96770.0,96769.0,0.325008]
[1738707397768,9e-07,96770.0,96769.0,0.34131804]
[1738707397971,9e-07,96770.0,96769.0,0.325008]
[1738707398584,9e-07,96770.0,96769.0,0.33316302]